bitfinex/quotes_ETHUSD_20260312
["timestamp","ask_amount","ask_price","bid_price","bid_amount"]
[1773332641915,1.21753883,2073.9,2073.0,2.57938233]
[1773332642214,1.21753093,2073.9,2072.9,1.411]
[1773332642383,0.58188146,2073.8,2072.9,1.411]
[1773332642583,0.01206051,2073.4,2072.9,1.411]
[1773332642817,1.20551644,2073.8,2073.0,1.20598166]
[1773332642986,1.20551644,2073.8,2072.9,2.61701989]
[1773332644098,1.7873979,2073.8,2072.9,2.61703982]
[1773332645114,1.20551644,2073.8,2072.9,5.19642215]
[1773332645303,1.20551644,2073.8,2072.9,5.76795195]
[1773332645819,1.20551644,2073.8,2072.9,5.19642215]
[1773332646146,1.7873979,2073.8,2072.9,2.61703982]
[1773332646494,1.7873979,2073.8,2072.9,2.61702835]
[1773332647186,0.58188146,2073.7,2072.9,2.61702835]
[1773332647606,0.58188146,2073.7,2072.7,1.20712497]
[1773332647806,0.58188146,2073.6,2072.7,1.20712497]
[1773332648414,0.58388146,2073.6,2072.7,1.20712497]
[1773332648624,0.58188146,2073.4,2072.7,0.001]
[1773332648793,2.57938233,2073.5,2071.8,1.45806654]
[1773332648794,0.58188146,2072.7,2071.8,1.45806654]
[1773332649121,0.58188146,2072.7,2071.8,1.21874663]
[1773332649321,0.58188146,2072.7,2071.8,0.01206654]
[1773332649322,0.58188146,2072.5,2071.8,0.01206654]
[1773332649488,0.56982095,2072.5,2071.8,0.01206654]
[1773332649820,3.42635223,2072.5,2071.8,0.01206654]
[1773332650201,3.42635223,2072.5,2072.1,0.001]
[1773332650793,3.78559674,2072.6,2072.1,0.001]
[1773332650794,1.20621441,2072.6,2072.1,0.001]
[1773332651193,4.82462064,2072.8,2072.1,0.001]
[1773332651703,5.4065021,2072.8,2072.1,0.001]
[1773332652223,3.88969103,2072.7,2072.1,0.001]
[1773332652417,0.58188146,2072.7,2072.1,0.001]
[1773332652624,0.58188146,2072.6,2072.1,0.001]
[1773332653125,0.58188146,2072.6,2071.3,0.58459936]
[1773332653126,0.58188146,2072.4,2071.3,1.22001668]
[1773332653323,1.65332451,2072.3,2071.3,1.79154648]
[1773332653493,3.88897126,2072.2,2071.3,1.22001668]
[1773332653818,1.78827049,2072.3,2071.3,1.22001668]
[1773332654001,3.30971531,2072.2,2071.3,1.22001668]
[1773332654204,2.86236745,2072.2,2071.3,1.22001668]
[1773332654802,2.86236745,2072.2,2071.7,2.57938233]
[1773332655007,1.20633617,2072.4,2071.4,0.5715298]
[1773332655221,1.20644725,2072.2,2071.4,1.20686801]
[1773332655397,3.31157711,2072.1,2071.4,1.20686801]
[1773332655723,3.31533069,2072.0,2071.4,1.20690594]
[1773332655898,1.78832871,2072.2,2071.4,1.20690594]
[1773332656099,3.31556969,2072.1,2071.4,1.20690594]
[1773332656320,1.03001959,2072.0,2071.3,1.22003838]
[1773332656505,3.3155751,2071.9,2071.3,0.01306956]
[1773332656713,2.86743697,2071.9,2071.3,1.22003136]
[1773332656907,0.58188146,2072.0,2071.3,1.22003136]
[1773332657098,3.31792029,2071.9,2071.3,1.22003136]
[1773332657410,3.31792029,2071.9,2071.3,1.22001908]
[1773332657411,4.07610069,2071.9,2071.3,1.22001908]
[1773332657611,4.82617065,2072.1,2071.3,1.22001908]
[1773332657612,1.20654933,2072.1,2071.3,1.22001908]
[1773332657812,3.3180253,2072.0,2071.3,1.22001908]
[1773332658013,3.89990676,2071.9,2071.3,0.01306956]
[1773332658222,3.3180253,2071.8,2071.3,0.01306956]
[1773332658423,2.8696139,2071.8,2071.3,0.01306956]
[1773332658641,3.31632491,2071.7,2071.3,0.01306956]
[1773332658820,0.58188146,2071.9,2071.3,0.01306956]
[1773332659125,1.03006149,2071.8,2071.3,0.01306956]
[1773332659332,1.20673842,2071.7,2071.3,0.01306956]
[1773332659624,2.27303317,2072.1,2071.3,0.01306956]
[1773332659804,8.14038375,2072.0,2071.3,1.22000324]
[1773332660001,3.31400415,2071.9,2071.4,2.57938233]
[1773332660322,7.09894902,2072.2,2071.3,1.22000324]
[1773332660323,1.20650051,2072.2,2071.3,1.22000324]
[1773332660526,3.31280194,2072.1,2071.3,1.22000324]
[1773332660723,0.44767296,2072.0,2071.3,1.24307084]
[1773332660925,2.86512898,2072.1,2071.3,1.24307084]
[1773332661125,2.86512898,2072.1,2071.4,2.57938233]
[1773332661324,3.4794304,2072.3,2071.4,2.57938233]
[1773332661325,1.20638958,2072.3,2071.5,1.20685493]
[1773332661640,4.83739703,2072.4,2071.7,2.57938233]
[1773332661641,1.21839918,2072.4,2071.7,2.57938233]
[1773332661938,0.01206654,2072.4,2071.7,2.57938233]
[1773332662299,0.01206654,2072.4,2072.0,2.57938233]
[1773332662300,2.87217948,2072.4,2072.0,2.57938233]
[1773332662535,2.87217948,2072.4,2071.7,0.50625299]
[1773332662536,0.01206654,2072.4,2071.7,3.08563532]
[1773332662734,0.01206654,2072.4,2071.7,3.10870292]
[1773332663413,1.21840024,2072.4,2071.8,1.20668018]
[1773332663612,0.01206654,2072.4,2071.8,2.61068018]
[1773332663812,0.01206654,2072.4,2071.8,2.63374778]
[1773332664207,4.60932002,2072.7,2071.8,2.63374778]
[1773332664409,2.85883883,2072.6,2071.8,2.63374778]
[1773332664628,0.54432497,2072.5,2071.8,0.0230676]
[1773332664826,3.4031638,2072.5,2071.8,0.0230676]
[1773332665029,2.85883883,2072.4,2071.8,0.0230676]
[1773332665229,0.54432497,2072.5,2071.8,0.0230676]
[1773332665442,4.06621869,2072.6,2071.9,1.20662194]
[1773332665616,2.85999821,2072.5,2071.9,1.20662194]
[1773332665935,1.20618155,2072.7,2071.9,1.20662194]
[1773332666112,2.86025646,2072.6,2071.9,1.20662194]
[1773332667411,4.06651228,2072.6,2071.9,1.20662194]
[1773332667611,1.20625582,2072.6,2071.9,1.20662194]
[1773332668508,0.54432497,2072.5,2071.8,2.61451647]
[1773332668713,0.54432497,2072.5,2071.8,0.03513414]
[1773332668714,0.54432497,2072.3,2071.8,0.03513414]
[1773332668933,3.40335728,2072.3,2071.8,0.03513414]
[1773332669240,2.85903231,2072.2,2071.8,0.03513414]
[1773332669438,1.20644725,2072.2,2071.8,0.03513414]
[1773332670015,1.20644725,2072.2,2071.6,4.82815358]
[1773332670016,2.85524033,2072.1,2071.6,0.001]
[1773332670212,0.54432497,2072.0,2071.3,0.01306956]
[1773332670433,0.54432497,2072.0,2071.3,1.22002666]
[1773332670434,3.3995653,2072.0,2071.3,1.22002666]
[1773332670644,2.85524033,2071.9,2071.3,1.22002666]
[1773332670938,0.54432497,2072.0,2071.3,1.22002666]
[1773332671628,1.20659118,2072.0,2071.3,1.22002666]
[1773332672455,2.85273737,2071.9,2071.3,1.22003384]
[1773332672614,2.85273737,2071.9,2071.3,0.01306956]
[1773332672815,2.85273737,2071.9,2071.3,1.22003993]
[1773332673132,2.85273737,2071.9,2071.3,0.01306956]
[1773332673133,3.39706234,2071.9,2071.3,0.01306956]
[1773332673335,2.85273737,2071.8,2071.3,0.01306956]
[1773332673532,1.20679667,2071.6,2071.3,0.01306956]
[1773332673733,3.39384892,2071.5,2070.6,1.20834975]
[1773332673932,2.84952395,2071.4,2070.6,1.20834975]
[1773332674132,2.84952395,2071.3,2070.6,1.20834975]
[1773332674334,2.84999357,2071.2,2070.6,1.20837486]
[1773332674539,2.27303317,2071.4,2070.6,1.20837497]
[1773332674540,2.84941067,2071.1,2070.6,1.20837497]
[1773332674725,2.81735814,2071.4,2070.6,1.20837497]
[1773332674726,0.54432497,2071.4,2070.6,1.20837497]
[1773332674919,2.84946496,2071.3,2070.6,1.20837497]
[1773332675322,2.84946496,2071.2,2070.6,1.20837497]
[1773332675524,2.84946496,2071.1,2070.6,0.001]
[1773332675747,4.05655774,2071.1,2070.6,0.001]
[1773332675921,1.20709278,2071.1,2070.6,0.001]
[1773332676252,2.85025583,2071.0,2070.6,0.001]
[1773332676451,3.3945808,2071.0,2070.6,0.001]
[1773332676643,3.3945808,2070.9,2070.4,0.001]
[1773332676826,2.85025583,2070.8,2070.4,0.001]
[1773332677031,0.54432497,2070.9,2070.4,0.001]
[1773332677253,3.39588574,2070.8,2070.4,0.001]
[1773332677433,2.85156077,2070.7,2070.4,0.001]
[1773332677633,0.54432497,2070.8,2070.4,0.001]
[1773332677851,2.84994575,2071.0,2070.4,0.001]
[1773332678149,1.20697146,2071.3,2070.4,0.001]
[1773332678339,2.85093212,2071.2,2070.4,0.001]
[1773332678536,2.85093212,2071.2,2070.6,2.59188512]
[1773332678727,0.01207258,2071.3,2071.0,0.001]
[1773332679153,2.86442605,2071.3,2071.0,0.001]
[1773332679326,0.01207258,2071.3,2071.0,0.001]
[1773332680751,1.2190553,2071.3,2071.0,0.001]
[1773332681123,0.01207258,2071.3,2071.0,0.001]
[1773332681746,0.01207258,2071.3,2071.0,1.2081463]
[1773332682922,0.01207258,2071.3,2071.0,0.001]
[1773332684044,1e-08,2071.3,2071.0,0.001]
[1773332684241,0.002,2071.7,2071.0,2.59288512]
[1773332684453,0.002,2071.7,2071.0,0.001]
[1773332684641,4.05725559,2071.7,2071.0,0.001]
[1773332684837,2.84848664,2071.6,2071.0,0.001]
[1773332685233,1.20875506,2071.7,2071.0,0.001]
[1773332685560,0.50802389,2071.5,2071.0,0.001]
[1773332685727,1.20691319,2071.4,2071.0,0.001]
[1773332685928,3.35727405,2071.3,2071.0,0.001]
[1773332686857,0.50802389,2071.3,2071.0,0.001]
[1773332687058,0.50802389,2071.6,2071.0,0.001]
[1773332687245,2.84864175,2071.6,2071.0,0.001]
[1773332687562,1.20877481,2071.7,2071.0,0.001]
[1773332687756,0.50802389,2071.4,2071.0,0.001]
[1773332688132,1.20685493,2071.5,2071.0,0.001]
[1773332688332,1.71487882,2071.5,2071.0,0.001]
[1773332688557,3.35623793,2071.4,2071.0,0.001]
[1773332688759,0.5,2071.3,2071.0,0.001]
[1773332688945,0.50802389,2071.2,2070.8,0.01207258]
[1773332689151,3.35623793,2071.2,2070.8,0.01207258]
[1773332689958,1.20708802,2071.1,2070.8,0.01207258]
[1773332690636,1.73518181,2071.1,2070.8,0.01207258]
[1773332691235,3.37270231,2071.0,2070.8,0.01207258]
[1773332691559,3.37270231,2071.0,2070.4,0.001]
[1773332691560,0.52809379,2070.9,2070.4,0.001]
[1773332691750,0.52809379,2070.9,2070.0,6.24371177]
[1773332691751,0.52809379,2070.8,2070.0,0.001]
[1773332692149,0.52809379,2070.6,2070.0,0.001]
[1773332692347,0.52809379,2070.6,2069.6,0.001]
[1773332692348,0.52809379,2070.3,2069.6,1.20895921]
[1773332692562,0.52809379,2070.2,2069.6,1.20895921]
[1773332692940,0.52809379,2070.2,2069.6,0.001]
[1773332693561,0.52809379,2070.0,2069.6,0.001]
[1773332693870,0.52809379,2070.0,2069.3,1.22021856]
[1773332694072,0.52809379,2069.9,2069.3,1.22019067]
[1773332694566,2.51371771,2070.1,2069.3,1.22019067]
[1773332694939,3.0418115,2070.1,2069.3,1.22019067]
[1773332695141,0.52809379,2070.4,2069.6,2.59188512]
[1773332695347,2.83532333,2070.5,2069.6,2.59188512]
[1773332695547,2.83532333,2070.5,2069.3,1.22019067]
[1773332695548,0.52809379,2070.4,2069.3,1.22019067]
[1773332696168,1.73564825,2070.3,2069.3,1.22019067]
[1773332696944,1.73564825,2070.3,2069.4,2.59188512]
[1773332697140,0.52809379,2070.3,2069.4,2.59188512]
[1773332697866,3.36518289,2070.3,2069.3,1.22019067]
[1773332698066,1.20761279,2070.2,2069.3,1.22019067]
[1773332698264,1.73567615,2070.3,2069.3,1.22019067]
[1773332698470,7.42186966,2070.6,2069.8,2.59188512]
[1773332698471,0.52809379,2070.6,2069.8,2.59188512]
[1773332698647,0.52809379,2070.6,2069.5,3.08190895]
[1773332698848,3.36651103,2070.6,2069.5,3.08190895]
[1773332699060,3.36651103,2070.6,2069.6,1.90129373]
[1773332699249,1.20730974,2070.8,2069.9,2.59188512]
[1773332699250,0.01207861,2070.3,2069.9,2.59188512]
[1773332699452,0.52809379,2071.0,2070.2,2.59188512]
[1773332699658,4.57523551,2071.0,2070.2,2.59188512]
[1773332699870,0.52809379,2071.0,2070.2,2.59188512]
[1773332700071,0.52809379,2070.9,2070.0,1.20772946]
[1773332700273,0.54016938,2070.8,2070.0,1.20772946]
[1773332701275,0.54016938,2070.8,2069.8,4.83132962]
[1773332701276,3.379071,2070.8,2069.8,4.83132962]
[1773332701454,1.02809379,2070.6,2069.8,4.83132962]
[1773332701974,1.02809379,2070.6,2069.7,1.20784616]
[1773332701975,1.02809379,2070.6,2069.7,1.20790452]
[1773332702177,1.02809379,2070.6,2069.3,4.84417691]
[1773332702178,0.52809379,2070.4,2069.3,1.22017764]
[1773332702477,2.59188512,2070.0,2069.3,0.01208163]
[1773332702769,0.52809379,2069.8,2069.3,0.01208163]
[1773332703271,2.84443732,2069.8,2069.3,1.22021379]
[1773332703477,0.52809379,2070.1,2069.3,1.22021379]
[1773332703692,0.52809379,2070.0,2069.3,0.01208163]
[1773332703872,0.52809379,2070.0,2069.3,1.22018812]
[1773332704054,4.58063369,2070.0,2069.3,1.22018812]
[1773332704259,2.84384786,2069.9,2069.3,1.22018812]
[1773332704455,2.51771281,2070.1,2069.3,1.22018812]
[1773332704664,2.84430465,2070.0,2069.3,1.22018812]
[1773332704864,1.20766325,2070.2,2069.4,2.59188512]
[1773332705046,1.20766325,2070.2,2069.5,0.001]
[1773332705251,1.73575704,2070.2,2069.5,0.001]
[1773332706154,0.52809379,2070.1,2069.5,0.001]
[1773332706580,0.52809379,2070.0,2069.5,0.001]
[1773332706875,0.52809379,2070.0,2069.3,0.01308163]
[1773332706876,0.52809379,2069.9,2069.3,0.01308163]
[1773332707192,0.52809379,2069.8,2069.3,0.01308163]
[1773332707487,1.312,2070.0,2069.3,1.22121031]
[1773332707792,0.52809379,2070.0,2069.3,0.01308163]
[1773332708084,0.52809379,2069.9,2069.3,0.01308163]
[1773332708256,1.20784616,2069.8,2069.3,0.01308163]
[1773332708652,1.7359222,2069.9,2069.3,1.22119554]
[1773332708847,1.7359222,2069.9,2069.3,0.01308163]
[1773332709053,1.7359222,2069.9,2069.3,1.22120321]
[1773332709554,1.20776461,2070.0,2069.3,1.22120321]
[1773332709749,1.7358584,2070.0,2069.3,1.22120321]
[1773332710056,0.52809379,2069.9,2069.3,0.01308163]
[1773332710255,1.73593995,2069.8,2069.3,1.22119343]
[1773332710682,1.73593995,2069.8,2069.3,0.01308163]
[1773332711089,0.52809379,2069.7,2069.3,0.01308163]
[1773332711870,0.52809379,2069.7,2069.3,1.2212086]
[1773332712396,1.314,2070.0,2069.3,1.2212086]
[1773332712397,0.52809379,2070.0,2069.3,1.2212086]
[1773332713007,1.73583187,2070.0,2069.3,1.2212086]
[1773332713210,1.20773808,2070.0,2069.3,1.2212086]
[1773332713553,1.73583187,2070.0,2069.3,1.2212086]
[1773332714887,0.52809379,2069.8,2069.3,0.01308163]
[1773332715251,0.52809379,2069.8,2069.0,1.20930887]
[1773332716181,2.84281518,2069.9,2068.7,0.01208465]
[1773332716182,0.52809379,2069.6,2068.7,0.01208465]
[1773332716415,1.20807963,2069.4,2068.7,0.01208465]
[1773332716559,0.52809379,2069.2,2068.7,0.01208465]
[1773332716754,2.84281518,2069.3,2068.7,1.22056662]
[1773332716954,1.20806067,2069.5,2068.7,1.22056662]
[1773332717261,2.84452138,2069.4,2068.7,1.22056662]
[1773332717472,2.84452138,2069.3,2068.7,1.22056662]
[1773332717672,0.52809379,2069.5,2068.7,1.22056662]
[1773332718081,3.37408152,2069.5,2068.7,1.22056662]
[1773332718557,2.84598773,2069.5,2069.1,1.20825479]
[1773332719060,2.27303317,2069.8,2069.1,1.20825479]
[1773332719388,2.84980874,2069.7,2069.1,1.20825479]
[1773332719560,1.73590396,2069.9,2069.1,1.20825479]
[1773332719762,0.002,2070.1,2069.3,2.59188512]
[1773332720072,0.002,2070.1,2069.4,0.02661381]
[1773332720073,2.8567435,2070.1,2069.4,0.02661381]
[1773332720491,2.8567435,2070.1,2069.2,1.2081964]
[1773332720492,3.3258744,2070.0,2069.2,1.2081964]
[1773332720793,0.01208163,2069.8,2069.0,4.8331026]
[1773332722393,3.32988318,2069.7,2069.0,1.20831319]
[1773332722561,4.53784607,2069.6,2068.9,4.83437069]
[1773332722762,2.85875228,2069.5,2068.9,1.20937159]
[1773332723063,2.85875228,2069.5,2068.9,0.001]
[1773332723460,0.4711309,2069.4,2068.9,0.001]
[1773332723660,0.4711309,2069.4,2068.7,0.01208465]
[1773332723961,0.4711309,2069.4,2068.4,0.02748161]
[1773332723962,2.74416407,2069.1,2068.4,1.20965957]
[1773332724162,2.85875228,2069.0,2068.4,1.20965957]
[1773332724362,0.4711309,2069.1,2068.2,0.01208767]
[1773332724363,0.4711309,2068.8,2068.2,0.01208767]
[1773332724556,1.67961932,2068.7,2068.2,1.22086255]
[1773332724784,0.4711309,2068.6,2068.2,1.2208658]
[1773332725458,0.4711309,2068.6,2068.2,0.01208767]
[1773332725775,0.4711309,2068.6,2068.2,1.22086348]
[1773332725977,1.7891309,2069.0,2068.2,1.22086348]
[1773332726290,3.4813337,2069.1,2068.2,1.22086348]
[1773332726291,1.20826827,2069.1,2068.2,1.22086348]
[1773332726459,2.85205532,2069.0,2068.2,1.22086348]
[1773332726659,0.5,2068.8,2068.4,2.59188512]
[1773332726860,0.4336557,2068.8,2068.4,2.59188512]
[1773332727056,0.4711309,2069.3,2068.4,2.59188512]
[1773332727266,3.32298753,2069.3,2068.3,1.415]
[1773332727466,0.01208465,2069.3,2068.3,1.415]
[1773332727671,0.01208465,2069.3,2068.6,2.59188512]
[1773332727867,2.85247769,2069.4,2068.6,2.59188512]
[1773332728072,0.02647663,2069.6,2068.9,2.59188512]
[1773332728286,0.02647663,2069.7,2069.2,2.59188512]
[1773332728471,3.35610054,2069.8,2069.0,1.415]
[1773332728666,0.50322174,2069.8,2069.1,1.20825479]
[1773332729481,1.71108031,2069.8,2069.1,1.20825479]
[1773332729682,2.88042252,2069.7,2068.9,4.83325277]
[1773332729882,2.88042252,2069.7,2068.5,1.88046373]
[1773332729883,0.4711309,2069.6,2068.6,4.83417716]
[1773332730082,0.02647663,2069.5,2068.6,4.83417716]
[1773332730296,0.02647663,2069.5,2068.8,2.59188512]
[1773332730508,0.49760753,2069.6,2068.8,2.59188512]
[1773332730673,1.70557212,2069.6,2068.9,1.20837159]
[1773332730869,1.70557212,2069.6,2068.3,1.2086637]
[1773332730870,3.27931414,2069.5,2068.3,1.2086637]
[1773332731075,0.02647663,2069.4,2068.3,1.2086637]
[1773332731491,0.02647663,2069.4,2068.5,2.59188512]
[1773332731693,3.27931414,2069.5,2068.8,2.59188512]
[1773332731907,0.4711309,2069.5,2068.8,2.59188512]
[1773332732626,0.02647663,2069.6,2068.8,2.59188512]
[1773332732764,0.02647663,2069.7,2068.9,1.20837159]
[1773332733206,0.02647663,2069.7,2068.9,1.20937159]
[1773332733366,0.002,2069.6,2068.9,1.20937159]
[1773332734610,0.4711309,2069.5,2069.0,0.02444859]
[1773332734890,0.02647663,2069.4,2068.8,1.20838954]
[1773332735678,0.02647663,2069.4,2068.7,1.22054104]
[1773332736217,2.2995098,2069.4,2068.7,1.22056341]
[1773332736378,2.7706407,2069.4,2068.7,1.22056341]
[1773332736685,0.4711309,2069.1,2068.4,0.001]
[1773332738599,2.74416407,2069.1,2068.4,0.001]
[1773332738799,1.20831319,2069.0,2068.4,0.001]
[1773332739001,1.20831319,2069.0,2068.5,1.414]
[1773332739700,1.67944409,2069.0,2068.4,0.001]
[1773332740007,1.67944409,2069.0,2068.0,7.43177179]
[1773332740008,0.4711309,2068.9,2068.0,1.414]
[1773332740376,0.4711309,2068.9,2067.8,1.20901441]
[1773332740574,0.4711309,2068.9,2067.7,5.0106139]
[1773332740575,0.4711309,2068.7,2067.7,1.38340156]
[1773332740774,0.4711309,2068.5,2067.7,1.38340156]
[1773332741088,4.83418737,2068.7,2067.7,1.38340156]
[1773332741089,1.20851438,2068.7,2067.8,2.59635882]
[1773332741424,0.4711309,2068.6,2067.3,0.75956201]
[1773332741591,0.4711309,2068.6,2067.4,7.43265035]
[1773332742202,0.4711309,2068.6,2067.7,2.59635882]
[1773332742579,0.4711309,2068.6,2067.4,7.9293121]
[1773332742794,0.4711309,2068.6,2067.4,4.83629153]
[1773332742795,0.6825559,2068.4,2067.4,4.83629153]
[1773332742992,0.6825559,2068.4,2067.5,1.414]
[1773332743195,1.20858071,2068.6,2067.6,2.59635882]
[1773332743502,2.85443009,2068.5,2067.6,2.59635882]
[1773332744077,7.10653688,2068.9,2067.9,2.59635882]
[1773332744078,1.20846986,2068.8,2067.9,2.59635882]
[1773332744315,2.85482093,2068.7,2067.9,2.59635882]
[1773332744521,1.20841273,2068.9,2067.9,2.59635882]
[1773332744815,1.91735903,2069.0,2067.9,2.59635882]
[1773332745010,4.06338965,2068.9,2068.0,1.20889748]
[1773332745220,5.54235632,2069.0,2068.1,1.414]
[1773332745221,0.70903253,2069.0,2068.1,1.414]
[1773332745374,0.70903253,2069.0,2068.1,2.08639701]
[1773332745375,0.02647663,2069.0,2068.1,2.08639701]
[1773332745579,2.88163391,2069.0,2068.1,2.08639701]
[1773332745780,0.02647663,2069.0,2068.6,2.59635882]
[1773332746113,4.78402277,2069.3,2068.2,3.26875583]
[1773332746403,2.85474483,2069.2,2068.2,3.26875583]
[1773332747117,4.06294631,2069.2,2068.3,1.20872213]
[1773332747315,1.20820148,2069.2,2068.3,1.19663143]
[1773332747513,1.89075738,2069.2,2068.4,1.414]
[1773332747723,1.89075738,2069.2,2068.3,1.19663143]
[1773332748021,2.88231042,2069.1,2068.4,1.414]
[1773332748332,0.01208767,2068.7,2068.0,1.20889748]
[1773332748489,0.69464357,2068.7,2068.0,1.20889748]
[1773332748829,0.69464357,2068.7,2067.8,1.20999146]
[1773332748985,1.89110274,2068.6,2067.8,1.20999146]
[1773332749186,1.2206151,2068.7,2067.8,1.20999146]
[1773332749722,0.01208767,2068.7,2067.8,1.20999146]
[1773332749907,0.01208767,2068.7,2067.8,1.88238847]
[1773332750603,0.01208767,2068.7,2068.0,2.59635882]
[1773332751112,0.01208767,2068.7,2068.1,1.414]
[1773332751113,1.22061562,2068.7,2068.1,1.414]
[1773332751323,0.0385643,2068.7,2068.1,1.414]
[1773332751489,0.01208767,2068.7,2068.1,1.414]
[1773332751985,2.85884888,2069.0,2068.5,2.59635882]
[1773332752186,2.28511782,2069.3,2068.2,3.25766405]
[1773332752187,1.24672037,2069.3,2068.2,3.25766405]
[1773332752392,2.88871868,2069.2,2068.2,3.25766405]
[1773332753027,4.09692881,2069.2,2068.3,1.20872213]
[1773332753192,2.86224205,2069.1,2068.3,1.20872213]
[1773332753393,1.20819756,2069.2,2068.3,1.20872213]
[1773332753718,2.86248556,2069.1,2068.3,1.20872213]
[1773332753910,1.22023202,2069.3,2068.3,1.20872213]
[1773332754306,2.86223217,2069.2,2068.3,1.20872213]
[1773332754598,1.22023202,2069.3,2068.4,0.66130523]
[1773332754599,0.01208465,2069.3,2068.4,0.66130523]
[1773332755111,0.01208465,2069.3,2068.5,1.20860526]
[1773332755289,1.22022861,2069.3,2068.5,1.20860526]
[1773332755496,1.22022861,2069.3,2068.6,1.414]
[1773332755497,0.02647663,2069.2,2068.6,1.414]
[1773332756119,1.89337399,2069.3,2068.6,1.414]
[1773332756921,0.03856128,2069.3,2068.6,1.414]
[1773332757127,1.86685684,2069.3,2068.7,1.20848842]
[1773332757306,1.86685684,2069.3,2068.7,2.62248842]
[1773332757831,0.64662881,2069.2,2068.6,1.2085048]
[1773332758123,0.64662881,2069.2,2068.7,1.414]
[1773332758805,0.64662881,2069.0,2068.5,1.415]
[1773332759205,0.64662881,2069.0,2068.5,2.62359909]
[1773332759206,4.71666926,2069.0,2068.5,2.62359909]
[1773332759404,1.85498172,2069.0,2068.5,2.62359909]
[1773332759607,0.02647663,2069.1,2068.5,2.62359909]
[1773332759806,2.86300537,2069.1,2068.5,2.62359909]
[1773332760019,2.86300537,2069.1,2068.5,1.415]
[1773332760020,0.64662881,2069.1,2068.5,1.415]
[1773332760204,0.67310544,2069.0,2068.5,1.415]
[1773332760400,0.02647663,2069.0,2068.5,2.62357599]
[1773332760614,2.86282324,2069.1,2068.5,2.62357599]
[1773332761126,4.07112969,2069.1,2068.5,2.62357599]
[1773332761314,1.20830645,2069.1,2068.5,1.20857599]
[1773332761512,0.64662881,2069.0,2068.5,0.001]
[1773332761695,0.67310544,2069.0,2068.5,0.001]
[1773332761897,0.64662881,2068.9,2068.5,0.001]
[1773332762601,0.64662881,2068.9,2068.3,0.001]
[1773332762919,0.64662881,2068.9,2067.9,4.83580254]
[1773332762920,0.64662881,2068.7,2068.0,0.001]
[1773332763237,1.85523407,2068.5,2068.0,0.001]
[1773332763394,1.20860455,2068.6,2068.0,0.001]
[1773332763594,1.20849342,2068.7,2068.0,0.001]
[1773332763798,0.64662881,2068.5,2068.0,0.001]
[1773332764402,2.86486178,2068.6,2068.0,0.001]
[1773332764605,0.64662881,2068.5,2068.0,0.001]
[1773332764809,0.64662881,2068.3,2067.8,0.001]
[1773332765037,0.64662881,2068.2,2067.8,0.001]
[1773332765212,1.85546784,2068.1,2067.8,0.001]
[1773332765631,1.85546784,2068.1,2067.5,0.001]
[1773332765632,0.64662881,2068.0,2067.5,0.001]
[1773332765820,1.20883903,2068.1,2067.2,1.22145061]
[1773332765821,0.64662881,2067.9,2067.2,1.22145061]
[1773332766018,0.64662881,2067.9,2067.2,1.22145014]
[1773332766216,0.64662881,2067.9,2067.2,1.22141575]
[1773332766420,0.64662881,2067.9,2067.2,1.22141378]
[1773332766615,0.64662881,2067.9,2067.2,1.22143311]
[1773332766853,0.64662881,2067.9,2067.2,0.01209372]
[1773332767020,0.64662881,2067.5,2066.8,1.20959938]
[1773332767338,1.20904026,2067.8,2066.8,1.20959938]
[1773332768541,0.01209372,2067.7,2066.8,4.46726343]
[1773332768924,0.01209372,2067.7,2066.9,0.66130523]
[1773332769326,0.01209372,2067.7,2067.0,1.20948234]
[1773332769523,0.01209372,2067.7,2067.1,1.4172]
[1773332769732,1.22117514,2067.7,2067.0,1.20948234]
[1773332769930,1.22117514,2067.7,2066.9,1.418]
[1773332769931,0.64662881,2067.6,2066.9,1.418]
[1773332770438,1.22116906,2067.7,2066.9,1.418]
[1773332770640,0.01209372,2067.7,2066.9,1.418]
[1773332771160,1e-08,2067.7,2067.3,2.59635882]
[1773332771330,1e-08,2067.7,2067.4,1.20924833]
[1773332771525,1e-08,2067.7,2067.5,1.419]
[1773332773440,1e-08,2067.7,2067.0,1.42]
[1773332773441,0.64662882,2067.7,2067.0,1.42]
[1773332773826,0.64662881,2067.4,2066.7,0.01209674]
[1773332774033,0.64662881,2067.4,2066.2,4.85177341]
[1773332774034,0.64662881,2067.1,2066.2,1.22200598]
[1773332774258,0.64662881,2067.0,2066.2,0.01209977]
[1773332774440,0.64662881,2066.8,2066.2,0.01209977]
[1773332774745,0.64662881,2066.6,2066.2,1.2220475]
[1773332774928,0.64662881,2066.6,2066.2,0.01209977]
[1773332775326,1.85638998,2066.6,2066.2,0.01209977]
[1773332775938,0.64662881,2066.4,2065.7,2.63120277]
[1773332776148,0.64662881,2066.4,2065.1,0.01210582]
[1773332776149,3.24298763,2065.9,2065.1,0.01210582]
[1773332776347,0.64662881,2065.8,2065.1,1.22266078]
[1773332776858,0.64662881,2065.8,2065.1,0.01210582]
[1773332777058,0.64662881,2065.8,2065.1,1.22268035]
[1773332777273,0.64662881,2065.6,2065.1,1.22269718]
[1773332777431,0.64662881,2065.6,2065.1,0.01210582]
[1773332777646,0.64662881,2065.6,2065.1,1.22269102]
[1773332777847,0.31972557,2065.8,2065.3,2.59635882]
[1773332778041,0.31972557,2065.8,2065.4,1.422]
[1773332778238,0.31972557,2065.8,2065.1,3.81904984]
[1773332778556,0.31972557,2065.8,2065.2,1.423]
[1773332779057,0.31972557,2065.8,2065.1,3.81904984]
[1773332779058,0.31972557,2065.8,2065.3,1.423]
[1773332779262,0.31972557,2065.8,2065.4,1.21041928]
[1773332779651,0.01210279,2066.2,2065.4,1.21041928]
[1773332780042,0.01210279,2066.2,2065.5,2.59635882]
[1773332780248,0.01210279,2066.2,2065.6,1.424]
[1773332780544,0.01210279,2066.2,2065.4,1.21041928]
[1773332780745,0.67362756,2066.2,2065.5,1.424]
[1773332781365,1.21000919,2066.1,2065.5,1.424]
[1773332781567,2.19077764,2066.1,2065.4,1.2103873]
[1773332782267,0.98076845,2066.1,2065.4,1.2103873]
[1773332782453,0.98076845,2066.1,2065.4,2.6353873]
[1773332783367,0.98076845,2066.1,2065.2,7.43803597]
[1773332783368,0.66152477,2065.8,2065.2,1.2105365]
[1773332783951,0.66152477,2065.8,2065.1,1.2226593]
[1773332784470,0.66152477,2065.8,2065.1,2.6486593]
[1773332784843,0.66152477,2065.8,2065.1,0.01210582]
[1773332785045,0.66152477,2065.8,2064.6,4.85565981]
[1773332785046,0.66152477,2065.3,2064.6,1.22295644]
[1773332785259,0.66152477,2065.3,2064.6,1.22299186]
[1773332785465,3.25788359,2065.1,2064.6,1.22299673]
[1773332785744,0.66152477,2065.1,2064.6,1.22299673]
[1773332786153,0.66152477,2065.1,2064.4,1.21094969]